fUSD/lending_fUSD_20250309
["ID","MTS","AMOUNT","RATE_DAILY","PERIOD"]
[355774745,1741551842567,-221.07187806,0.00049,120]
[355774746,1741551842594,-448.14,0.000495,120]
[355774747,1741551842621,-155.0,0.00050214,120]
[355774748,1741551842648,-1496816.91506965,0.000505,120]
[355774749,1741551842674,-1000000.0,0.000505,120]
[355774750,1741551842702,-44054.69506703,0.000505,120]
[355774751,1741551842727,-200.0,0.000505,120]
[355774752,1741551842752,-150.0,0.000505,120]
[355774753,1741551842784,-150.0,0.00050633,120]
[355774754,1741551842810,-2000.0,0.0005075,120]
[355774755,1741551842834,-261.0105146,0.00051,30]
[355774756,1741551842859,-2000000.0,0.00051,120]
[355774757,1741551842884,-500.0,0.00051,120]
[355774758,1741551842909,-200.0,0.00051,120]
[355774759,1741551842934,-5717.59,0.00051,117]
[355774760,1741551842957,-2000.0,0.00051011,120]
[355774761,1741551842980,-2000.0,0.00051272,120]
[355774762,1741551843006,-2000000.0,0.000515,120]
[355774763,1741551843033,-200.0,0.000515,120]
[355774764,1741551843057,-2000.0,0.00051533,120]
[355774765,1741551843081,-5000.0,0.0005176,30]
[355774766,1741551843106,-1062.0,0.00051781,30]
[355774767,1741551843130,-1062.0,0.00051781,30]
[355774768,1741551843155,-2000.0,0.00051794,120]
[355774769,1741551843179,-1000.0,0.00051999,120]
[355774770,1741551843205,-500.0,0.00052,120]
[355774771,1741551843230,-2000000.0,0.00052,120]
[355774772,1741551843255,-1000.0,0.00052,120]
[355774773,1741551843283,-60000.0,0.00052,120]
[355774774,1741551843309,-270.3636708,0.00052,120]
[355774775,1741551843335,-151.29708951,0.00052,120]
[355774776,1741551843361,-1000.0,0.00052,60]
[355774777,1741551843387,-200.0,0.00052,120]
[355774778,1741551843412,-1000.0,0.00052054,120]
[355774779,1741551843437,-2000.0,0.00052055,120]
[355774780,1741551843464,-2000.0,0.00052316,120]
[355774781,1741551843490,-1166.79,0.00052319,120]
[355774782,1741551843514,-3443.34,0.0005234,120]
[355774783,1741551843729,-1358761.315347,0.000525,120]
[355774831,1741552053123,467.15150127,0.00026618,120]
[355774832,1741552055944,1000.0,0.00026618,30]
[355774833,1741552066785,512.47113616,0.00026618,120]
[355774834,1741552067584,489.15035032,0.00026618,120]
[355774835,1741552071310,1105.18913687,0.00026618,30]
[355774836,1741552072352,469.49949651,0.00026618,120]
[355774837,1741552081450,335.88313766,0.00026618,120]
[355774838,1741552083723,208.83312787,0.00026618,120]
[355774839,1741552088235,197.03607035,0.00026618,120]
[355774840,1741552088732,880.28342864,0.00026618,30]
[355774842,1741552091055,444.0,0.00026618,120]
[355774843,1741552102655,1000.0,0.00026618,30]
[355774844,1741552105940,341.92237035,0.00026618,120]
[355774845,1741552106600,993.44688859,0.00026618,120]
[355774846,1741552106857,598.99797387,0.00026618,120]
[355774847,1741552107138,376.3521969,7.888e-05,2]
[355774848,1741552108330,1015.08006216,0.00026618,35]
[355774849,1741552108902,202.73518616,0.00026618,30]
[355774850,1741552112100,1695.59440484,0.00026618,30]
[355774851,1741552112227,1836.26913456,0.00026618,120]
[355774852,1741552112861,265.54326994,0.00026618,30]
[355774853,1741552113034,2677.71925756,0.00026618,30]
[355774854,1741552113133,468.64703267,0.00026618,45]
[355774855,1741552113482,1759.03275026,0.00026618,30]
[355774856,1741552113792,2313.96756653,0.00026618,30]
[355774857,1741552114451,212.62715603,0.00026618,60]
[355774858,1741552114705,2033.72408531,0.00026618,120]
[355774859,1741552115216,2496.23613134,0.00026618,120]
[355774860,1741552115410,1456.3803277,0.00026618,30]
[355774861,1741552115489,1000.0,0.00026618,30]
[355774862,1741552115981,1071.13588176,0.00026618,120]
[355774863,1741552117406,2185.51152142,0.00026618,30]
[355774864,1741552117701,411.48212345,0.00026618,120]
[355774874,1741552122783,425.1046872,0.00026618,30]
[355774875,1741552128323,1000.0,0.00026618,30]
[355774876,1741552141163,1000.0,0.0002755,120]
[355774877,1741552144035,1812.67301527,0.0002755,60]
[355774886,1741552154627,1000.0,0.0002755,60]
[355774918,1741552167465,1000.0,0.0002755,120]
[355774927,1741552180297,1000.0,0.0002755,120]
[355774928,1741552193190,1000.0,0.0002755,60]
[355774932,1741552205973,1000.0,0.0002755,30]
[355774933,1741552218806,1000.0,0.0002755,60]
[355774934,1741552231650,1000.0,0.0002755,30]
[355774937,1741552232462,-1133.78569072,8.219e-05,2]
[355774938,1741552232628,-106.72430928,8.219e-05,2]
[355774939,1741552232640,-150.0,8.284e-05,2]
[355774940,1741552232650,-250.0,8.479e-05,2]
[355774941,1741552232659,-233.14922233,8.533e-05,2]
[355774942,1741552232669,-117.12646839,8.534e-05,2]
[355774943,1741552232687,-536.70986734,8.534e-05,2]
[355774978,1741552238211,-346.16366427,8.534e-05,2]
[355774981,1741552238224,-156.87,8.978e-05,2]
[355774982,1741552238236,-156.87,9.01e-05,2]
[355774983,1741552238249,-316.19,9.023e-05,2]
[355774984,1741552238260,-150.0,9.041e-05,2]
[355774985,1741552238271,-150.0,9.041e-05,2]
[355774986,1741552238285,-336.37,9.041e-05,2]
[355774987,1741552238296,-156.87,9.042e-05,2]
[355774988,1741552238307,-156.87,9.073e-05,2]
[355774989,1741552238319,-162.04,9.077e-05,2]
[355774990,1741552238330,-156.87,9.105e-05,2]
[355774991,1741552238342,-156.87,9.137e-05,2]
[355774992,1741552238354,-156.87,9.169e-05,2]
[355774993,1741552238365,-156.87,9.2e-05,2]
[355774994,1741552238375,-156.87,9.232e-05,2]
[355774995,1741552238394,-156.87,9.264e-05,2]
[355774996,1741552238409,-156.87,9.295e-05,2]
[355774997,1741552238421,-1317.65,9.3e-05,2]
[355774998,1741552238435,-156.87,9.327e-05,2]
[355774999,1741552238447,-150.0,9.339e-05,2]
[355775000,1741552238459,-1775.44361532,9.34e-05,2]
[355775001,1741552238481,-1629.83238255,9.34e-05,2]
[355775002,1741552238495,-1476.42,9.34e-05,2]
[355775003,1741552238507,-424.538785,9.34e-05,2]
[355775004,1741552238536,-63902.81571677,9.34e-05,2]
[355775005,1741552238548,-156.87,9.359e-05,2]
[355775006,1741552238561,-156.87,9.39e-05,2]
[355775007,1741552238573,-156.87,9.422e-05,2]
[355775008,1741552238584,-156.87,9.454e-05,2]
[355775009,1741552238594,-156.87,9.485e-05,2]
[355775010,1741552238605,-786.0,9.487e-05,2]
[355775011,1741552238615,-1270.0,9.487e-05,2]
[355775012,1741552238625,-1428.0,9.487e-05,2]
[355775014,1741552238635,-546.595,9.487e-05,2]
[355775016,1741552238649,-907.0,9.487e-05,2]
[355775018,1741552238661,-4076.0,9.487e-05,2]
[355775021,1741552238673,-1113.0,9.487e-05,2]
[355775023,1741552238683,-2032.0,9.487e-05,2]
[355775025,1741552238694,-302.0,9.487e-05,2]
[355775027,1741552238704,-3932.0,9.487e-05,2]
[355775029,1741552238714,-150.0,9.487e-05,2]
[355775031,1741552238725,-1278.0,9.487e-05,2]
[355775033,1741552238734,-156.87,9.517e-05,2]
[355775035,1741552238746,-150.0,9.562e-05,7]
[355775038,1741552238756,-1000.0,9.6e-05,2]
[355775040,1741552238770,-1000.0,9.7e-05,2]
[355775042,1741552238781,-300.97,9.748e-05,2]
[355775044,1741552238791,-300.0,9.748e-05,2]
[355775046,1741552238802,-150.0,9.748e-05,2]
[355775048,1741552238812,-881.18,9.748e-05,2]
[355775051,1741552238823,-344.93,9.748e-05,2]
[355775053,1741552238834,-150.0,9.748e-05,2]
[355775055,1741552238844,-150.0,9.748e-05,2]
[355775057,1741552238855,-168.16,9.748e-05,2]
[355775059,1741552238866,-150.0,9.748e-05,2]
[355775061,1741552238877,-150.0,9.748e-05,2]
[355775063,1741552238890,-150.0,9.748e-05,2]
[355775066,1741552238903,-167.36,9.748e-05,2]
[355775068,1741552238914,-150.0,9.748e-05,2]
[355775070,1741552238926,-1127.09989496,9.8e-05,2]
[355775072,1741552238936,-1056.12576057,9.8e-05,2]
[355775074,1741552238947,-3837.92747887,9.8e-05,3]
[355775076,1741552238958,-197.33246286,9.828e-05,2]
[355775078,1741552238969,-297.4374,9.899e-05,2]
[355775080,1741552238980,-1000.0,9.899e-05,2]
[355775082,1741552238991,-13329.463,9.899e-05,2]
[355775084,1741552239001,-1127.5458,9.899e-05,2]
[355775087,1741552239012,-2500.0,9.899e-05,2]
[355775089,1741552239023,-3235.76054478,9.9e-05,2]
[355775091,1741552239037,-44026.08705522,9.9e-05,2]
[355775094,1741552239051,-246.84,9.9e-05,2]
[355775096,1741552239061,-2222.829,9.9e-05,2]
[355775098,1741552239072,-173.697,9.9e-05,2]
[355775100,1741552239083,-5000.0,9.9e-05,2]
[355775102,1741552239094,-1682.0,9.9e-05,2]
[355775104,1741552239104,-522.9258881,9.973e-05,2]
[355775106,1741552239115,-197.38349905,9.973e-05,2]
[355775108,1741552239125,-160.33838873,9.973e-05,2]
[355775110,1741552239135,-410.61343302,9.973e-05,2]
[355775112,1741552239147,-160.44211166,9.973e-05,2]
[355775114,1741552239158,-649.91,9.998e-05,2]
[355775116,1741552239168,-500.0,9.998e-05,2]
[355775117,1741552239179,-1028.3,9.998e-05,2]
[355775118,1741552239189,-500.0,9.998e-05,2]
[355775119,1741552239199,-709.42,9.998e-05,2]
[355775120,1741552239210,-537.42,9.998e-05,2]
[355775121,1741552239220,-911.09,9.998e-05,2]
[355775122,1741552239230,-798.03,9.998e-05,2]
[355775123,1741552239240,-500.0,9.998e-05,2]
[355775124,1741552239250,-1371.49,9.998e-05,2]
[355775125,1741552239260,-500.0,9.998e-05,2]
[355775126,1741552239270,-806.82,9.998e-05,2]
[355775127,1741552239280,-973.17,9.998e-05,2]
[355775129,1741552239290,-557.05,9.998e-05,2]
[355775131,1741552239301,-526.98,9.998e-05,2]
[355775133,1741552239311,-535.97,9.998e-05,2]
[355775135,1741552239322,-500.0,9.998e-05,2]
[355775137,1741552239333,-500.0,9.998e-05,2]
[355775139,1741552239343,-500.0,9.998e-05,2]
[355775142,1741552239354,-525.82,9.998e-05,2]
[355775144,1741552239365,-521.7,9.998e-05,2]
[355775146,1741552239375,-2475.79,9.998e-05,2]
[355775148,1741552239385,-548.3736025,9.998e-05,2]
[355775150,1741552239398,-500.0,9.998e-05,2]
[355775152,1741552239408,-591.37,9.998e-05,2]
[355775154,1741552239419,-798.5,9.998e-05,2]
[355775156,1741552239429,-566.01,9.998e-05,2]
[355775158,1741552239439,-210.26279782,9.999e-05,2]
[355775161,1741552239449,-1000.0,9.999e-05,2]
[355775163,1741552239460,-1000.0,9.999e-05,2]
[355775165,1741552239471,-1000.0,9.999e-05,2]
[355775167,1741552239481,-1000.0,9.999e-05,2]
[355775169,1741552239492,-1000.0,9.999e-05,2]
[355775171,1741552239503,-1000.0,9.999e-05,2]
[355775173,1741552239514,-153.821543,9.999e-05,2]
[355775175,1741552239524,-348.813574,9.999e-05,2]
[355775178,1741552239535,-500.0,9.999e-05,2]
[355775180,1741552239546,-500.0,9.999e-05,2]
[355775182,1741552239557,-500.0,9.999e-05,2]
[355775184,1741552239568,-500.0,9.999e-05,2]
[355775186,1741552239578,-500.0,9.999e-05,2]
[355775188,1741552239589,-1794.88,9.999e-05,2]
[355775190,1741552239599,-500.0,9.999e-05,2]
[355775192,1741552239610,-500.0,9.999e-05,2]
[355775195,1741552239620,-512.35354066,9.999e-05,2]
[355775197,1741552239630,-500.0,9.999e-05,2]
[355775199,1741552239640,-500.0,9.999e-05,2]
[355775201,1741552239653,-500.0,9.999e-05,2]
[355775203,1741552239663,-500.0,9.999e-05,2]
[355775205,1741552239673,-304.72313933,9.999e-05,2]
[355775207,1741552239683,-500.0,9.999e-05,2]
[355775209,1741552239694,-500.0,9.999e-05,2]
[355775211,1741552239704,-500.0,9.999e-05,2]
[355775214,1741552239715,-500.0,9.999e-05,2]
[355775216,1741552239725,-500.0,9.999e-05,2]
[355775218,1741552239735,-500.0,9.999e-05,2]
[355775220,1741552239746,-500.0,9.999e-05,2]
[355775222,1741552239756,-500.0,9.999e-05,2]
[355775224,1741552239767,-500.0,9.999e-05,2]
[355775226,1741552239777,-603.99,9.999e-05,2]
[355775228,1741552239787,-672.7,9.999e-05,2]
[355775231,1741552239797,-500.0,9.999e-05,2]
[355775233,1741552239808,-844.34,9.999e-05,2]
[355775235,1741552239818,-500.0,9.999e-05,2]
[355775237,1741552239830,-500.0,9.999e-05,2]
[355775239,1741552239841,-672.13,9.999e-05,2]
[355775241,1741552239852,-626.98,9.999e-05,2]
[355775243,1741552239862,-500.0,9.999e-05,2]
[355775245,1741552239873,-765.75,9.999e-05,2]
[355775247,1741552239886,-1072.44,9.999e-05,2]
[355775249,1741552239897,-500.0,9.999e-05,2]
[355775252,1741552239907,-1175.39,9.999e-05,2]
[355775254,1741552239918,-5616.08,9.999e-05,2]
[355775256,1741552239928,-500.0,9.999e-05,2]
[355775258,1741552239938,-500.0,9.999e-05,2]
[355775260,1741552239948,-951.33,9.999e-05,2]
[355775262,1741552239958,-500.0,9.999e-05,2]
[355775264,1741552239969,-500.0,9.999e-05,2]
[355775266,1741552239979,-500.0,9.999e-05,2]
[355775268,1741552239989,-500.0,9.999e-05,2]
[355775270,1741552239999,-500.0,9.999e-05,2]
[355775272,1741552240010,-893.63,9.999e-05,2]
[355775274,1741552240021,-639.11,9.999e-05,2]
[355775276,1741552240031,-721.41,9.999e-05,2]
[355775279,1741552240041,-500.0,9.999e-05,2]
[355775281,1741552240051,-500.0,9.999e-05,2]
[355775283,1741552240062,-500.0,9.999e-05,2]
[355775285,1741552240072,-529.16,9.999e-05,2]
[355775287,1741552240082,-1075.69,9.999e-05,2]
[355775289,1741552240092,-7675.61880492,9.999e-05,2]
[355775291,1741552240103,-500.0,9.999e-05,2]
[355775293,1741552240113,-500.0,9.999e-05,2]
[355775295,1741552240123,-500.0,9.999e-05,2]
[355775297,1741552240133,-769.91,9.999e-05,2]
[355775299,1741552240143,-505.78,9.999e-05,2]
[355775301,1741552240154,-524.34380918,9.999e-05,2]
[355775304,1741552240166,-1215.19,9.999e-05,2]
[355775306,1741552240176,-669.57,9.999e-05,2]
[355775308,1741552240188,-500.0,9.999e-05,2]
[355775310,1741552240198,-1855.43,9.999e-05,2]
[355775311,1741552240209,-500.0,9.999e-05,2]
[355775313,1741552240219,-1171.18,9.999e-05,2]
[355775315,1741552240229,-500.0,9.999e-05,2]
[355775317,1741552240243,-500.0,9.999e-05,2]
[355775318,1741552240253,-1473.43,9.999e-05,2]
[355775320,1741552240264,-500.0,9.999e-05,2]
[355775322,1741552240274,-6189.04,9.999e-05,2]
[355775324,1741552240284,-3153.76,9.999e-05,2]
[355775326,1741552240294,-684.51,9.999e-05,2]
[355775328,1741552240304,-500.0,9.999e-05,2]
[355775329,1741552240314,-500.0,9.999e-05,2]
[355775331,1741552240324,-500.0,9.999e-05,2]
[355775333,1741552240335,-1942.76,9.999e-05,2]
[355775335,1741552240345,-500.0,9.999e-05,2]
[355775336,1741552240355,-500.0,9.999e-05,2]
[355775338,1741552240365,-769.04,9.999e-05,2]
[355775340,1741552240375,-637.53,9.999e-05,2]
[355775342,1741552240385,-765.09,9.999e-05,2]
[355775343,1741552240396,-5047.26,9.999e-05,2]
[355775345,1741552240407,-511.1,9.999e-05,2]
[355775347,1741552240416,-500.0,9.999e-05,2]
[355775349,1741552240426,-570.82,9.999e-05,2]
[355775351,1741552240436,-566.31,9.999e-05,2]
[355775352,1741552240446,-500.0,9.999e-05,2]
[355775354,1741552240456,-1339.32,9.999e-05,2]
[355775356,1741552240466,-500.0,9.999e-05,2]
[355775384,1741552240795,-982.05,9.999e-05,2]
[355775386,1741552240812,-855.62,9.999e-05,2]
[355775388,1741552240821,-1358.24,9.999e-05,2]
[355775390,1741552240831,-999.34,9.999e-05,2]
[355775392,1741552240840,-2317.0,0.0001,2]
[355775394,1741552240849,-543195.56463423,0.0001,2]
[355775412,1741552241058,-3785.29063338,0.0001,2]
[355775414,1741552241069,-555.26247137,0.0001,2]
[355775416,1741552241081,-405.17512303,0.0001,2]
[355775418,1741552241092,-810.06699986,0.0001,2]
[355775429,1741552241202,-297.43967201,0.0001,2]
[355775431,1741552241213,-1104.1250125,0.0001,2]
[355775433,1741552241223,-718.18,0.0001,2]
[355775436,1741552241247,-737225.2760027,0.0001,2]
[355775438,1741552241258,-305.764,0.0001,2]
[355775440,1741552241269,-833.798123,0.0001,2]
[355775442,1741552241286,-68463.03336241,0.0001,2]
[355775711,1741552244035,-1012.0,9.487e-05,2]
[355775713,1741552244044,-49230.93901941,0.0001,2]
[355775717,1741552244070,-5597.451595,0.0001,2]
[355775727,1741552245257,1000.0,0.0002755,60]
[355775730,1741552246370,-344.35578006,0.0001,2]
[355775731,1741552246382,-620.81914915,0.0001,2]
[355775732,1741552246431,-74033.66107,0.0001,2]
[355775733,1741552246488,-64246.11526631,0.0001,2]
[355775734,1741552271908,168.0,0.00028,120]
[355775736,1741552363211,150.0,0.0002755,30]
[355775737,1741552363648,204.5,0.0002755,30]
[355775739,1741552545149,1000.0,0.00027548,30]
[355775740,1741552962559,195.5,0.00027591,30]
[355775781,1741553277751,319.0,8.219e-05,2]
[355775830,1741553431491,-557.09,8.219e-05,2]
[355775831,1741553431815,-400.69,8.219e-05,2]
[355775832,1741553431826,-160.7,8.838e-05,2]
[355775833,1741553431838,-250.0,8.925e-05,2]
[355775834,1741553431850,-150.0,8.952e-05,2]
[355775835,1741553431861,-1466.14,8.98e-05,2]
[355775836,1741553431871,-150.0,8.987e-05,2]
[355775837,1741553431882,-550.0,9e-05,2]
[355775838,1741553431893,-972.47,9.007e-05,2]
[355775839,1741553431906,-27.53,9.007e-05,2]
[355775840,1741553431917,-153.77,9.025e-05,2]
[355775841,1741553431927,-246.84,9.043e-05,2]
[355775842,1741553431937,-499.67704304,9.077e-05,2]
[355775843,1741553431958,-605.35295696,9.077e-05,2]
[355775844,1741553431968,-167.75,9.082e-05,2]
[355775845,1741553431978,-299.99,9.082e-05,2]
[355775846,1741553431989,-314.04,9.082e-05,2]
[355775847,1741553432000,-150.0,9.552e-05,2]
[355775848,1741553432010,-300.0,9.552e-05,2]
[355775849,1741553432020,-626.88070554,9.553e-05,2]
[355775850,1741553432050,-1405.11929446,9.553e-05,2]
[355775851,1741553432060,-1278.0,9.553e-05,2]
[355775852,1741553432070,-1459.0,9.553e-05,2]
[355775853,1741553432080,-641.0,9.553e-05,2]
[355775854,1741553432092,-78.39181965,9.553e-05,2]
[355775855,1741553432104,-492.60818035,9.553e-05,2]
[355775856,1741553432115,-786.0,9.553e-05,2]
[355775857,1741553432125,-1428.0,9.553e-05,2]
[355775858,1741553432135,-541.0,9.553e-05,2]
[355775859,1741553432145,-1270.0,9.553e-05,2]
[355775860,1741553432155,-907.0,9.553e-05,2]
[355775861,1741553432165,-3368.75950165,9.553e-05,2]
[355775862,1741553432178,-707.24049835,9.553e-05,2]
[355775863,1741553432188,-1388.75950165,9.553e-05,2]
[355775864,1741553432202,-354.25839032,9.553e-05,2]
[355776280,1741553437510,-160.46,9.131e-05,2]
[355776281,1741553437520,-957.539961,9.553e-05,2]
[355776282,1741553437531,-1092.76717894,9.553e-05,2]
[355776283,1741553437543,-138.67496809,9.553e-05,2]
[355776284,1741553437553,-1012.0,9.553e-05,2]
[355776285,1741553437562,-150.0,9.553e-05,2]
[355776286,1741553437572,-150.0,9.562e-05,7]
[355776287,1741553437582,-150.0,9.756e-05,2]
[355776288,1741553437591,-440.76,9.756e-05,2]
[355776289,1741553437601,-150.0,9.756e-05,2]
[355776290,1741553437611,-377.93,9.756e-05,2]
[355776291,1741553437620,-150.0,9.817e-05,2]
[355776292,1741553437630,-857.17965688,9.879e-05,2]
[355776293,1741553437639,-173.697,9.879e-05,2]
[355776294,1741553437649,-429.74462703,9.879e-05,2]
[355776295,1741553437664,-818.48179019,9.879e-05,2]
[355776296,1741553437677,-983.73758278,9.879e-05,2]
[355776297,1741553437686,-1298.78042754,9.9e-05,2]
[355776298,1741553437697,-3893.18635514,9.9e-05,2]
[355776299,1741553437709,-8808.52199999,9.9e-05,2]
[355776300,1741553437720,-1176.149,9.9e-05,2]
[355776301,1741553439630,-7511.56838733,9.9e-05,2]
[355776302,1741553439639,-1000.0,9.9e-05,2]
[355776303,1741553439648,-1185.89,9.9e-05,2]
[355776304,1741553439657,-5000.0,9.9e-05,2]
[355776305,1741553439666,-1507.0,9.9e-05,2]
[355776306,1741553439675,-4968.0,9.973e-05,2]
[355776307,1741553439684,-155.78767783,9.973e-05,2]
[355776308,1741553439693,-1005.0,9.998e-05,2]
[355776309,1741553439702,-500.0,9.998e-05,2]
[355776310,1741553439715,-511.02149131,9.998e-05,2]
[355776311,1741553439724,-500.0,9.998e-05,2]
[355776312,1741553439733,-23720.93609417,9.998e-05,2]
[355776313,1741553439742,-1000.0,9.999e-05,2]
[355776314,1741553439752,-1000.0,9.999e-05,2]
[355776315,1741553439761,-1000.0,9.999e-05,2]
[355776316,1741553439770,-1000.0,9.999e-05,2]
[355776317,1741553439779,-1000.0,9.999e-05,2]
[355776318,1741553439788,-1000.0,9.999e-05,2]
[355776319,1741553439797,-1000.0,9.999e-05,2]
[355776320,1741553439806,-1000.0,9.999e-05,2]
[355776321,1741553439816,-1000.0,9.999e-05,2]
[355776322,1741553439825,-1000.0,9.999e-05,2]
[355776323,1741553439834,-1002.0,9.999e-05,2]
[355776324,1741553439844,-1000.0,9.999e-05,2]
[355776325,1741553439854,-1000.0,9.999e-05,3]
[355776326,1741553439863,-153.821543,9.999e-05,2]
[355776327,1741553439872,-348.813574,9.999e-05,2]
[355776328,1741553439882,-626.44166446,9.999e-05,2]
[355776329,1741553439891,-500.0,9.999e-05,2]
[355776330,1741553439900,-500.0,9.999e-05,2]
[355776331,1741553439910,-203.75196162,9.999e-05,2]
[355776333,1741553439919,-500.0,9.999e-05,2]
[355776335,1741553439929,-1800.96,9.999e-05,2]
[355776337,1741553439938,-500.0,9.999e-05,2]
[355776339,1741553439947,-500.0,9.999e-05,2]
[355776341,1741553439956,-500.0,9.999e-05,2]
[355776343,1741553439966,-500.0,9.999e-05,2]
[355776345,1741553439975,-500.0,9.999e-05,2]
[355776347,1741553439985,-287.31737609,9.999e-05,2]
[355776348,1741553439995,-500.0,9.999e-05,2]
[355776349,1741553440005,-500.0,9.999e-05,2]
[355776350,1741553440014,-500.0,9.999e-05,2]
[355776351,1741553440023,-500.0,9.999e-05,2]
[355776352,1741553440033,-500.0,9.999e-05,2]
[355776353,1741553440042,-500.0,9.999e-05,2]
[355776354,1741553440051,-500.0,9.999e-05,2]
[355776355,1741553440061,-500.0,9.999e-05,2]
[355776356,1741553440070,-500.0,9.999e-05,2]
[355776357,1741553440079,-500.0,9.999e-05,2]
[355776358,1741553440089,-500.0,9.999e-05,2]
[355776359,1741553440098,-500.0,9.999e-05,2]
[355776360,1741553440108,-500.0,9.999e-05,2]
[355776361,1741553440117,-578.82,9.999e-05,2]
[355776362,1741553440126,-644.67,9.999e-05,2]
[355776363,1741553440135,-500.0,9.999e-05,2]
[355776364,1741553440144,-500.0,9.999e-05,2]
[355776365,1741553440153,-765.23,9.999e-05,2]
[355776366,1741553440163,-500.0,9.999e-05,2]
[355776367,1741553440172,-644.13,9.999e-05,2]
[355776368,1741553440181,-733.84,9.999e-05,2]
[355776369,1741553440190,-500.0,9.999e-05,2]
[355776370,1741553440199,-809.16,9.999e-05,2]
[355776371,1741553440209,-1625.85,9.999e-05,2]
[355776372,1741553440218,-1126.41,9.999e-05,2]
[355776373,1741553440228,-5382.08,9.999e-05,2]
[355776374,1741553440238,-600.85,9.999e-05,2]
[355776375,1741553440247,-500.0,9.999e-05,2]
[355776376,1741553440257,-500.0,9.999e-05,2]
[355776377,1741553440267,-518.59,9.999e-05,2]
[355776378,1741553440281,-500.0,9.999e-05,2]
[355776379,1741553440290,-500.0,9.999e-05,2]
[355776380,1741553440299,-447.83791194,9.999e-05,2]
[355776381,1741553440308,-856.4,9.999e-05,2]
[355776382,1741553440319,-500.0,9.999e-05,2]
[355776383,1741553440329,-500.0,9.999e-05,2]
[355776384,1741553440338,-911.7,9.999e-05,2]
[355776385,1741553440350,-612.48,9.999e-05,2]
[355776386,1741553440360,-500.0,9.999e-05,2]
[355776387,1741553440370,-1030.87,9.999e-05,2]
[355776388,1741553440379,-500.0,9.999e-05,2]
[355776389,1741553440388,-500.0,9.999e-05,2]
[355776390,1741553440398,-500.0,9.999e-05,2]
[355776391,1741553440407,-737.83,9.999e-05,2]
[355776392,1741553440416,-507.11,9.999e-05,2]
[355776393,1741553440426,-500.0,9.999e-05,2]
[355776394,1741553440437,-691.36,9.999e-05,2]
[355776395,1741553440446,-1164.56,9.999e-05,2]
[355776396,1741553440455,-500.0,9.999e-05,2]
[355776397,1741553440465,-500.0,9.999e-05,2]
[355776398,1741553440474,-1778.12,9.999e-05,2]
[355776399,1741553440483,-500.0,9.999e-05,2]
[355776400,1741553440492,-500.0,9.999e-05,2]
[355776401,1741553440502,-1122.38,9.999e-05,2]
[355776402,1741553440511,-500.0,9.999e-05,2]
[355776403,1741553440520,-622.83,9.999e-05,2]
[355776404,1741553440529,-690.33,9.999e-05,2]
[355776405,1741553440538,-1412.04,9.999e-05,2]
[355776406,1741553440547,-500.0,9.999e-05,2]
[355776407,1741553440556,-985.45,9.999e-05,2]
[355776408,1741553440566,-5931.16,9.999e-05,2]
[355776409,1741553440575,-3022.35,9.999e-05,2]
[355776410,1741553440584,-873.13,9.999e-05,2]
[355776411,1741553440593,-500.0,9.999e-05,2]
[355776412,1741553440602,-500.0,9.999e-05,2]
[355776413,1741553440611,-500.0,9.999e-05,2]
[355776414,1741553440620,-500.0,9.999e-05,2]
[355776415,1741553440630,-655.99,9.999e-05,2]
[355776416,1741553440639,-541.24,9.999e-05,2]
[355776417,1741553440649,-1314.35,9.999e-05,2]
[355776418,1741553440658,-505.52,9.999e-05,2]
[355776419,1741553440668,-773.2,9.999e-05,2]
[355776420,1741553440677,-764.78,9.999e-05,2]
[355776421,1741553440686,-500.0,9.999e-05,2]
[355776422,1741553440695,-500.0,9.999e-05,2]
[355776423,1741553440705,-533.84,9.999e-05,2]
[355776424,1741553440714,-500.0,9.999e-05,2]
[355776425,1741553440724,-737.0,9.999e-05,2]